[Event "Titled Tuesday Blitz February 14 Late 2023"]
[White "Estrada Nieto, Julian"]
[Black "Alfaro, William"]
[WhiteFideId "5101018"]
[BlackFideId "6100457"]
[WhiteElo "2215"]
[BlackElo "2134"]
[Result "0-1"]
[Round "07"]
[TimeControl "180+2"]
[Date "2023.02.14"]
[WhiteClock "0:00:01"]
[BlackClock "0:01:09"]

1. e4 {[%clk 0:03:00]}  c5 {[%clk 0:02:58]} 2. Nf3 {[%clk 0:03:01]}  Nc6 {[%clk 0:02:58]} 3. Bb5 {[%clk 0:03:01]}  e6 {[%clk 0:02:58]} 4. O-O {[%clk 0:03:01]}  Nge7 {[%clk 0:02:57]} 5. Re1 {[%clk 0:03:01]}  d6 {[%clk 0:02:54]} 6. d4 {[%clk 0:02:52]}  cxd4 {[%clk 0:02:53]} 7. Nxd4 {[%clk 0:02:51]}  Bd7 {[%clk 0:02:53]} 8. Nc3 {[%clk 0:02:40]}  a6 {[%clk 0:02:52]} 9. Bxc6 {[%clk 0:02:29]}  Nxc6 {[%clk 0:02:48]} 10. Nxc6 {[%clk 0:02:28]}  Bxc6 {[%clk 0:02:48]} 11. Qg4 {[%clk 0:02:12]}  h5 {[%clk 0:02:42]} 12. Qh3 {[%clk 0:02:07]}  Be7 {[%clk 0:02:35]} 13. Bf4 {[%clk 0:02:06]}  e5 {[%clk 0:02:30]} 14. Be3 {[%clk 0:02:03]}  Bg5 {[%clk 0:02:30]} 15. Rad1 {[%clk 0:01:58]}  Rh6 {[%clk 0:02:10]} 16. Nd5 {[%clk 0:01:49]}  Kf8 {[%clk 0:01:54]} 17. Qf3 {[%clk 0:01:21]}  Bd7 {[%clk 0:01:51]} 18. Nb6 {[%clk 0:01:13]}  Bg4 {[%clk 0:01:49]} 19. Qg3 {[%clk 0:01:09]}  Bh4 {[%clk 0:01:43]} 20. Bxh6 {[%clk 0:00:26]}  Bxg3 {[%clk 0:01:40]} 21. Nxa8 {[%clk 0:00:24]}  gxh6 {[%clk 0:01:27]} 22. hxg3 {[%clk 0:00:13]}  Bxd1 {[%clk 0:01:27]} 23. Rxd1 {[%clk 0:00:14]}  Qxa8 {[%clk 0:01:27]} 24. Rxd6 {[%clk 0:00:14]}  b5 {[%clk 0:01:26]} 25. Rxh6 {[%clk 0:00:13]}  Qxe4 {[%clk 0:01:26]} 26. Rxh5 {[%clk 0:00:10]}  Qe1+ {[%clk 0:01:26]} 27. Kh2 {[%clk 0:00:10]}  f6 {[%clk 0:01:20]} 28. Rf5 {[%clk 0:00:05]}  Kf7 {[%clk 0:01:19]} 29. Rf3 {[%clk 0:00:05]}  Qd2 {[%clk 0:01:14]} 30. Rc3 {[%clk 0:00:04]}  Qxf2 {[%clk 0:01:14]} 31. Rc7+ {[%clk 0:00:03]}  Kg6 {[%clk 0:01:13]} 32. Rc6 {[%clk 0:00:04]}  a5 {[%clk 0:01:13]} 33. Rc3 {[%clk 0:00:03]}  a4 {[%clk 0:01:12]} 34. a3 {[%clk 0:00:03]}  Kg5 {[%clk 0:01:11]} 35. Rc8 {[%clk 0:00:02]}  Qd4 {[%clk 0:01:10]} 36. Rg8+ {[%clk 0:00:02]}  Kf5 {[%clk 0:01:10]} 37. c3 {[%clk 0:00:02]}  Qd2 {[%clk 0:01:10]} 38. Rh8 {[%clk 0:00:01]}  Qxb2 {[%clk 0:01:09]} 0-1


[Site "https://www.chess.com"]

[Event "Titled Tuesday Blitz February 14 Late 2023"]
[White "Carrasco Miranda, Andres"]
[Black "Stanisz, Patryk"]
[WhiteFideId "3405990"]
[BlackFideId "1123106"]
[WhiteElo "2240"]
[BlackElo "2161"]
[Result "1-0"]
[Round "07"]
[TimeControl "180+2"]
[Date "2023.02.14"]
[WhiteClock "0:00:58"]
[BlackClock "0:00:01"]

1. d4 {[%clk 0:03:00]}  d5 {[%clk 0:02:54]} 2. c4 {[%clk 0:03:00]}  c6 {[%clk 0:02:55]} 3. Nf3 {[%clk 0:03:01]}  Nf6 {[%clk 0:02:54]} 4. e3 {[%clk 0:03:01]}  e6 {[%clk 0:02:54]} 5. b3 {[%clk 0:03:01]}  b6 {[%clk 0:02:52]} 6. Bd3 {[%clk 0:03:01]}  Bb7 {[%clk 0:02:53]} 7. Bb2 {[%clk 0:02:57]}  Nbd7 {[%clk 0:02:53]} 8. O-O {[%clk 0:02:53]}  Be7 {[%clk 0:02:51]} 9. Nbd2 {[%clk 0:02:52]}  O-O {[%clk 0:02:51]} 10. Ne5 {[%clk 0:02:52]}  Nxe5 {[%clk 0:02:51]} 11. dxe5 {[%clk 0:02:53]}  Nd7 {[%clk 0:02:52]} 12. f4 {[%clk 0:02:52]}  f5 {[%clk 0:02:43]} 13. Nf3 {[%clk 0:02:47]}  c5 {[%clk 0:02:35]} 14. Qe2 {[%clk 0:02:44]}  Qc7 {[%clk 0:02:32]} 15. Rac1 {[%clk 0:02:41]}  a5 {[%clk 0:02:29]} 16. a4 {[%clk 0:02:39]}  Rad8 {[%clk 0:02:24]} 17. Rfd1 {[%clk 0:02:32]}  h6 {[%clk 0:02:19]} 18. cxd5 {[%clk 0:02:18]}  Bxd5 {[%clk 0:02:16]} 19. Bc4 {[%clk 0:02:18]}  Qb7 {[%clk 0:01:19]} 20. Bxd5 {[%clk 0:02:03]}  exd5 {[%clk 0:01:19]} 21. Qb5 {[%clk 0:02:00]}  Nb8 {[%clk 0:01:08]} 22. Rd2 {[%clk 0:01:52]}  Qc6 {[%clk 0:00:52]} 23. Rcd1 {[%clk 0:01:50]}  Qxb5 {[%clk 0:00:51]} 24. axb5 {[%clk 0:01:50]}  Kf7 {[%clk 0:00:39]} 25. Rxd5 {[%clk 0:01:48]}  Ke6 {[%clk 0:00:40]} 26. Rxd8 {[%clk 0:01:17]}  Rxd8 {[%clk 0:00:41]} 27. Rxd8 {[%clk 0:01:17]}  Bxd8 {[%clk 0:00:41]} 28. Kf2 {[%clk 0:01:17]}  Nd7 {[%clk 0:00:40]} 29. Nd2 {[%clk 0:01:15]}  Nf8 {[%clk 0:00:33]} 30. Kf3 {[%clk 0:01:10]}  g6 {[%clk 0:00:18]} 31. e4 {[%clk 0:01:09]}  Kd7 {[%clk 0:00:18]} 32. g4 {[%clk 0:01:05]}  fxg4+ {[%clk 0:00:12]} 33. Kxg4 {[%clk 0:01:05]}  h5+ {[%clk 0:00:12]} 34. Kf3 {[%clk 0:01:04]}  Ne6 {[%clk 0:00:12]} 35. Nc4 {[%clk 0:01:00]}  Kc7 {[%clk 0:00:03]} 36. f5 {[%clk 0:01:00]}  Ng5+ {[%clk 0:00:01]} 37. Ke3 {[%clk 0:00:59]}  Kb7 {[%clk 0:00:01]} 38. e6 {[%clk 0:00:58]} 1-0


[Site "https://www.chess.com"]

[Event "Titled Tuesday Blitz February 14 Late 2023"]
[White "Figorito, Nick"]
[Black "De Souza, Cristiano Gomes"]
[WhiteFideId "30923689"]
[BlackFideId "2151758"]
[WhiteElo "2036"]
[BlackElo "2018"]
[Result "1-0"]
[Round "07"]
[TimeControl "180+2"]
[Date "2023.02.14"]
[WhiteClock "0:00:47"]
[BlackClock "0:00:04"]

1. Nf3 {[%clk 0:03:00]}  Nf6 {[%clk 0:02:59]} 2. g3 {[%clk 0:03:00]}  g6 {[%clk 0:02:56]} 3. Bg2 {[%clk 0:03:01]}  Bg7 {[%clk 0:02:56]} 4. O-O {[%clk 0:03:02]}  O-O {[%clk 0:02:55]} 5. c4 {[%clk 0:03:03]}  d5 {[%clk 0:02:54]} 6. cxd5 {[%clk 0:03:02]}  Nxd5 {[%clk 0:02:53]} 7. Nc3 {[%clk 0:03:03]}  Nb6 {[%clk 0:02:52]} 8. d4 {[%clk 0:03:02]}  Nc6 {[%clk 0:02:48]} 9. d5 {[%clk 0:03:01]}  Ne5 {[%clk 0:02:46]} 10. Nxe5 {[%clk 0:03:00]}  Bxe5 {[%clk 0:02:34]} 11. Bh6 {[%clk 0:03:00]}  Bg7 {[%clk 0:02:27]} 12. Bxg7 {[%clk 0:03:00]}  Kxg7 {[%clk 0:02:27]} 13. e4 {[%clk 0:02:55]}  e6 {[%clk 0:02:06]} 14. Rc1 {[%clk 0:02:51]}  exd5 {[%clk 0:02:06]} 15. exd5 {[%clk 0:02:50]}  a6 {[%clk 0:02:00]} 16. a4 {[%clk 0:02:29]}  Qf6 {[%clk 0:01:47]} 17. a5 {[%clk 0:02:23]}  Nd7 {[%clk 0:01:37]} 18. b4 {[%clk 0:02:11]}  Qd8 {[%clk 0:00:56]} 19. Ne4 {[%clk 0:02:07]}  f5 {[%clk 0:00:50]} 20. Qd4+ {[%clk 0:02:02]}  Kg8 {[%clk 0:00:46]} 21. Nc5 {[%clk 0:01:46]}  Nf6 {[%clk 0:00:46]} 22. Rfe1 {[%clk 0:01:40]}  Qd6 {[%clk 0:00:28]} 23. Ne6 {[%clk 0:01:35]}  Rf7 {[%clk 0:00:20]} 24. Nxc7 {[%clk 0:01:30]}  Rxc7 {[%clk 0:00:17]} 25. Rxc7 {[%clk 0:01:29]}  Qxc7 {[%clk 0:00:17]} 26. Qxf6 {[%clk 0:01:28]}  Qf7 {[%clk 0:00:16]} 27. Qd6 {[%clk 0:00:55]}  f4 {[%clk 0:00:08]} 28. Qd8+ {[%clk 0:00:47]}  Kg7 {[%clk 0:00:04]} 29. Re7 {[%clk 0:00:47]} 1-0


[Site "https://www.chess.com"]

[Event "Titled Tuesday Blitz February 14 Late 2023"]
[White "Sariego Figueredo, Wilfredo"]
[Black "Ardila, Oscar Humberto"]
[WhiteFideId "3500080"]
[BlackFideId "4404742"]
[WhiteElo "2318"]
[BlackElo "1982"]
[Result "1-0"]
[Round "07"]
[TimeControl "180+2"]
[Date "2023.02.14"]
[WhiteClock "0:00:09"]
[BlackClock "0:00:06"]

1. d4 {[%clk 0:03:00]}  Nf6 {[%clk 0:02:59]} 2. Bf4 {[%clk 0:03:00]}  e6 {[%clk 0:02:54]} 3. e3 {[%clk 0:02:59]}  Be7 {[%clk 0:02:54]} 4. Nf3 {[%clk 0:02:59]}  d6 {[%clk 0:02:54]} 5. Bd3 {[%clk 0:02:57]}  Nbd7 {[%clk 0:02:54]} 6. Nbd2 {[%clk 0:02:56]}  Nf8 {[%clk 0:02:54]} 7. h3 {[%clk 0:02:53]}  Ng6 {[%clk 0:02:55]} 8. Bh2 {[%clk 0:02:53]}  O-O {[%clk 0:02:54]} 9. c3 {[%clk 0:02:52]}  c5 {[%clk 0:02:54]} 10. O-O {[%clk 0:02:52]}  b6 {[%clk 0:02:54]} 11. Re1 {[%clk 0:02:51]}  Bb7 {[%clk 0:02:54]} 12. e4 {[%clk 0:02:49]}  cxd4 {[%clk 0:02:53]} 13. cxd4 {[%clk 0:02:49]}  Rc8 {[%clk 0:02:46]} 14. Qa4 {[%clk 0:02:39]}  a6 {[%clk 0:02:28]} 15. Rac1 {[%clk 0:02:39]}  b5 {[%clk 0:02:24]} 16. Qb3 {[%clk 0:02:33]}  Qb6 {[%clk 0:02:21]} 17. a4 {[%clk 0:02:15]}  Bc6 {[%clk 0:01:31]} 18. Nc4 {[%clk 0:01:51]}  Qd8 {[%clk 0:01:26]} 19. axb5 {[%clk 0:01:50]}  Bxb5 {[%clk 0:01:23]} 20. Ne3 {[%clk 0:01:47]}  Rb8 {[%clk 0:01:20]} 21. Bxb5 {[%clk 0:01:34]}  Rxb5 {[%clk 0:01:20]} 22. Qc2 {[%clk 0:01:30]}  Qb8 {[%clk 0:01:03]} 23. Nc4 {[%clk 0:01:09]}  Rd8 {[%clk 0:00:55]} 24. Qa4 {[%clk 0:01:01]}  Qb7 {[%clk 0:00:50]} 25. Na5 {[%clk 0:00:56]}  Qb6 {[%clk 0:00:32]} 26. Nc6 {[%clk 0:00:45]}  Re8 {[%clk 0:00:28]} 27. Nxe7+ {[%clk 0:00:42]}  Nxe7 {[%clk 0:00:26]} 28. e5 {[%clk 0:00:22]}  dxe5 {[%clk 0:00:23]} 29. Bxe5 {[%clk 0:00:21]}  Nfd5 {[%clk 0:00:21]} 30. Rc5 {[%clk 0:00:14]}  Ng6 {[%clk 0:00:18]} 31. Rec1 {[%clk 0:00:11]}  Nxe5 {[%clk 0:00:18]} 32. Nxe5 {[%clk 0:00:10]}  h6 {[%clk 0:00:15]} 33. Rxb5 {[%clk 0:00:09]}  axb5 {[%clk 0:00:14]} 34. Qa2 {[%clk 0:00:09]}  Qxd4 {[%clk 0:00:14]} 35. Nc6 {[%clk 0:00:08]}  Nf4 {[%clk 0:00:12]} 36. Nxd4 {[%clk 0:00:08]}  e5 {[%clk 0:00:12]} 37. Nf3 {[%clk 0:00:08]}  Ne2+ {[%clk 0:00:12]} 38. Kf1 {[%clk 0:00:08]}  Nxc1 {[%clk 0:00:12]} 39. Qb1 {[%clk 0:00:08]}  Rc8 {[%clk 0:00:11]} 40. Qe4 {[%clk 0:00:08]}  Nb3 {[%clk 0:00:10]} 41. Qxe5 {[%clk 0:00:08]}  Rc1+ {[%clk 0:00:09]} 42. Ne1 {[%clk 0:00:08]}  Nd2+ {[%clk 0:00:09]} 43. Ke2 {[%clk 0:00:09]}  Nc4 {[%clk 0:00:09]} 44. Qe8+ {[%clk 0:00:08]}  Kh7 {[%clk 0:00:09]} 45. Qe4+ {[%clk 0:00:09]}  Kg8 {[%clk 0:00:08]} 46. Qa8+ {[%clk 0:00:10]}  Kh7 {[%clk 0:00:08]} 47. f3 {[%clk 0:00:08]}  Rb1 {[%clk 0:00:06]} 48. Qe4+ {[%clk 0:00:08]}  g6 {[%clk 0:00:06]} 49. Qxb1 {[%clk 0:00:09]} 1-0


[Site "https://www.chess.com"]

[Event "Titled Tuesday Blitz February 14 Late 2023"]
[White "Wang, Alexander J"]
[Black "Georg, Heinz"]
[WhiteFideId "30955270"]
[BlackFideId "4607295"]
[WhiteElo "1815"]
[BlackElo "2107"]
[Result "0-1"]
[Round "07"]
[TimeControl "180+2"]
[Date "2023.02.14"]
[WhiteClock "0:01:43"]
[BlackClock "0:02:28"]

1. e4 {[%clk 0:03:00]}  e5 {[%clk 0:02:59]} 2. Nf3 {[%clk 0:03:00]}  Nc6 {[%clk 0:02:59]} 3. Bb5 {[%clk 0:02:54]}  f5 {[%clk 0:02:58]} 4. d3 {[%clk 0:02:50]}  Nf6 {[%clk 0:02:58]} 5. Nc3 {[%clk 0:02:38]}  d6 {[%clk 0:02:57]} 6. Bg5 {[%clk 0:02:34]}  Be7 {[%clk 0:02:57]} 7. Qd2 {[%clk 0:02:25]}  O-O {[%clk 0:02:57]} 8. Bc4+ {[%clk 0:02:19]}  Kh8 {[%clk 0:02:56]} 9. Bh4 {[%clk 0:02:16]}  fxe4 {[%clk 0:02:53]} 10. dxe4 {[%clk 0:02:14]}  Nxe4 {[%clk 0:02:49]} 11. Nxe4 {[%clk 0:02:01]}  Bxh4 {[%clk 0:02:48]} 12. Neg5 {[%clk 0:02:01]}  Nd4 {[%clk 0:02:37]} 13. Nxh4 {[%clk 0:01:52]}  Rf4 {[%clk 0:02:30]} 14. Nhf3 {[%clk 0:01:47]}  Nxf3+ {[%clk 0:02:28]} 15. Nxf3 {[%clk 0:01:43]}  Rxc4 {[%clk 0:02:28]} 0-1


[Site "https://www.chess.com"]

[Event "Titled Tuesday Blitz February 14 Late 2023"]
[White "Tarnowska, Aleksandra"]
[Black "Chabris, Christopher"]
[WhiteFideId "1180967"]
[BlackFideId "2005263"]
[WhiteElo "1835"]
[BlackElo "2053"]
[Result "0-1"]
[Round "07"]
[TimeControl "180+2"]
[Date "2023.02.14"]
[WhiteClock "0:00:01"]
[BlackClock "0:00:21"]

1. e4 {[%clk 0:03:00]}  c5 {[%clk 0:02:59]} 2. Nf3 {[%clk 0:03:00]}  d6 {[%clk 0:02:59]} 3. Bb5+ {[%clk 0:03:00]}  Nd7 {[%clk 0:02:59]} 4. O-O {[%clk 0:02:59]}  Nf6 {[%clk 0:02:58]} 5. d3 {[%clk 0:02:46]}  a6 {[%clk 0:02:51]} 6. Bxd7+ {[%clk 0:02:43]}  Nxd7 {[%clk 0:02:46]} 7. Nc3 {[%clk 0:02:40]}  e6 {[%clk 0:02:46]} 8. Ne2 {[%clk 0:02:39]}  Be7 {[%clk 0:02:45]} 9. Ng3 {[%clk 0:02:40]}  O-O {[%clk 0:02:40]} 10. d4 {[%clk 0:02:34]}  cxd4 {[%clk 0:02:36]} 11. Nxd4 {[%clk 0:02:33]}  Qc7 {[%clk 0:02:31]} 12. Be3 {[%clk 0:02:24]}  b5 {[%clk 0:02:29]} 13. c3 {[%clk 0:02:19]}  Bb7 {[%clk 0:02:29]} 14. Qg4 {[%clk 0:02:02]}  Ne5 {[%clk 0:02:07]} 15. Qe2 {[%clk 0:01:43]}  Qc4 {[%clk 0:02:03]} 16. Qd2 {[%clk 0:01:33]}  Qd3 {[%clk 0:01:45]} 17. f4 {[%clk 0:01:00]}  Qxd2 {[%clk 0:01:42]} 18. Bxd2 {[%clk 0:01:01]}  Nc4 {[%clk 0:01:36]} 19. Bc1 {[%clk 0:01:01]}  Bd8 {[%clk 0:01:26]} 20. b3 {[%clk 0:00:56]}  Nb6 {[%clk 0:01:21]} 21. f5 {[%clk 0:00:53]}  e5 {[%clk 0:01:18]} 22. Nf3 {[%clk 0:00:50]}  f6 {[%clk 0:01:12]} 23. Be3 {[%clk 0:00:50]}  d5 {[%clk 0:01:08]} 24. exd5 {[%clk 0:00:50]}  Nxd5 {[%clk 0:01:05]} 25. Bc5 {[%clk 0:00:47]}  Re8 {[%clk 0:01:00]} 26. Rac1 {[%clk 0:00:44]}  Nf4 {[%clk 0:00:56]} 27. Rfd1 {[%clk 0:00:26]}  Bc6 {[%clk 0:00:41]} 28. Rd6 {[%clk 0:00:24]}  Rc8 {[%clk 0:00:42]} 29. Kf2 {[%clk 0:00:20]}  Be7 {[%clk 0:00:38]} 30. Rxc6 {[%clk 0:00:14]}  Bxc5+ {[%clk 0:00:37]} 31. Rxc5 {[%clk 0:00:12]}  Rxc5 {[%clk 0:00:38]} 32. Ne1 {[%clk 0:00:05]}  Rd8 {[%clk 0:00:36]} 33. Ke3 {[%clk 0:00:05]}  Rcd5 {[%clk 0:00:34]} 34. Ne2 {[%clk 0:00:02]}  Nxe2 {[%clk 0:00:31]} 35. Kxe2 {[%clk 0:00:03]}  Rd2+ {[%clk 0:00:31]} 36. Kf1 {[%clk 0:00:03]}  Rxa2 {[%clk 0:00:31]} 37. Nf3 {[%clk 0:00:02]}  e4 {[%clk 0:00:30]} 38. Nd4 {[%clk 0:00:02]}  b4 {[%clk 0:00:26]} 39. Ne6 {[%clk 0:00:01]}  Rdd2 {[%clk 0:00:25]} 40. cxb4 {[%clk 0:00:01]}  Rf2+ {[%clk 0:00:25]} 41. Kg1 {[%clk 0:00:01]}  Rxg2+ {[%clk 0:00:25]} 42. Kf1 {[%clk 0:00:01]}  Raf2+ {[%clk 0:00:21]} 0-1


[Site "https://www.chess.com"]

[Event "Titled Tuesday Blitz February 14 Late 2023"]
[White "Leonte, Sebastian-Marian"]
[Black "Curtis, John"]
[WhiteFideId "1268767"]
[BlackFideId "3200256"]
[WhiteElo "1279"]
[BlackElo "2292"]
[Result "0-1"]
[Round "07"]
[TimeControl "180+2"]
[Date "2023.02.14"]
[WhiteClock "0:00:02"]
[BlackClock "0:01:03"]

1. e4 {[%clk 0:03:00]}  c5 {[%clk 0:02:59]} 2. Nf3 {[%clk 0:03:00]}  d6 {[%clk 0:02:59]} 3. d4 {[%clk 0:03:00]}  cxd4 {[%clk 0:02:58]} 4. Nxd4 {[%clk 0:03:01]}  Nf6 {[%clk 0:02:53]} 5. Nc3 {[%clk 0:03:01]}  a6 {[%clk 0:02:54]} 6. f3 {[%clk 0:03:01]}  e5 {[%clk 0:02:54]} 7. Nb3 {[%clk 0:03:01]}  Be6 {[%clk 0:02:54]} 8. Be3 {[%clk 0:03:01]}  b5 {[%clk 0:02:42]} 9. Qd2 {[%clk 0:02:49]}  Be7 {[%clk 0:02:39]} 10. O-O-O {[%clk 0:02:42]}  Nc6 {[%clk 0:02:38]} 11. g4 {[%clk 0:02:39]}  O-O {[%clk 0:02:35]} 12. g5 {[%clk 0:02:35]}  Nd7 {[%clk 0:02:34]} 13. Nd5 {[%clk 0:02:29]}  Bxd5 {[%clk 0:02:34]} 14. exd5 {[%clk 0:02:30]}  Na7 {[%clk 0:02:25]} 15. Kb1 {[%clk 0:02:25]}  Nb6 {[%clk 0:02:21]} 16. Na5 {[%clk 0:02:20]}  Rb8 {[%clk 0:02:20]} 17. Qf2 {[%clk 0:02:04]}  Qc7 {[%clk 0:02:15]} 18. Bd3 {[%clk 0:01:54]}  Rfc8 {[%clk 0:02:14]} 19. h4 {[%clk 0:01:50]}  Na4 {[%clk 0:02:12]} 20. Bxa7 {[%clk 0:01:46]}  Qxa5 {[%clk 0:02:11]} 21. Bxb8 {[%clk 0:01:39]}  Qb4 {[%clk 0:02:02]} 22. b3 {[%clk 0:01:29]}  Nc3+ {[%clk 0:02:00]} 23. Kb2 {[%clk 0:01:23]}  Nxd1+ {[%clk 0:01:55]} 24. Rxd1 {[%clk 0:01:24]}  Qc3+ {[%clk 0:01:47]} 25. Kb1 {[%clk 0:01:21]}  Rxb8 {[%clk 0:01:46]} 26. Qa7 {[%clk 0:01:13]}  Re8 {[%clk 0:01:40]} 27. Qxa6 {[%clk 0:01:09]}  h6 {[%clk 0:01:25]} 28. gxh6 {[%clk 0:01:05]}  e4 {[%clk 0:01:24]} 29. h7+ {[%clk 0:00:58]}  Kh8 {[%clk 0:01:23]} 30. Qc6 {[%clk 0:00:27]}  Qxc6 {[%clk 0:01:20]} 31. dxc6 {[%clk 0:00:28]}  exd3 {[%clk 0:01:20]} 32. Rxd3 {[%clk 0:00:26]}  Rc8 {[%clk 0:01:20]} 33. Rc3 {[%clk 0:00:20]}  Kxh7 {[%clk 0:01:20]} 34. a4 {[%clk 0:00:16]}  bxa4 {[%clk 0:01:19]} 35. b4 {[%clk 0:00:16]}  Bd8 {[%clk 0:01:19]} 36. Ka2 {[%clk 0:00:15]}  Bxh4 {[%clk 0:01:14]} 37. Ka3 {[%clk 0:00:12]}  Bd8 {[%clk 0:01:14]} 38. Kxa4 {[%clk 0:00:11]}  Kg6 {[%clk 0:01:09]} 39. Kb5 {[%clk 0:00:08]}  Rb8+ {[%clk 0:01:08]} 40. Ka6 {[%clk 0:00:03]}  Bc7 {[%clk 0:01:05]} 41. b5 {[%clk 0:00:02]}  Rb6+ {[%clk 0:01:03]} 0-1


[Site "https://www.chess.com"]

[Event "Titled Tuesday Blitz February 14 Late 2023"]
[White "Mendez Machado, Andre"]
[Black "Marin Masis, Jose Esteban"]
[WhiteFideId "6603793"]
[BlackFideId "6508146"]
[WhiteElo "1974"]
[BlackElo "1938"]
[Result "0-1"]
[Round "07"]
[TimeControl "180+2"]
[Date "2023.02.14"]
[WhiteClock "0:00:07"]
[BlackClock "0:00:14"]

1. e4 {[%clk 0:03:00]}  c5 {[%clk 0:02:59]} 2. Nc3 {[%clk 0:03:00]}  Nc6 {[%clk 0:02:58]} 3. Bb5 {[%clk 0:03:01]}  g6 {[%clk 0:02:56]} 4. Bxc6 {[%clk 0:03:01]}  bxc6 {[%clk 0:02:56]} 5. d3 {[%clk 0:03:02]}  Bg7 {[%clk 0:02:57]} 6. f4 {[%clk 0:03:02]}  d5 {[%clk 0:02:57]} 7. Nf3 {[%clk 0:03:00]}  e6 {[%clk 0:02:53]} 8. O-O {[%clk 0:03:00]}  Nf6 {[%clk 0:02:53]} 9. Qe1 {[%clk 0:02:59]}  O-O {[%clk 0:02:51]} 10. Qh4 {[%clk 0:02:58]}  Nh5 {[%clk 0:02:45]} 11. Qh3 {[%clk 0:02:45]}  c4 {[%clk 0:02:36]} 12. e5 {[%clk 0:02:39]}  cxd3 {[%clk 0:02:24]} 13. g4 {[%clk 0:02:33]}  Nf6 {[%clk 0:01:59]} 14. exf6 {[%clk 0:02:31]}  Qxf6 {[%clk 0:01:54]} 15. cxd3 {[%clk 0:02:30]}  Ba6 {[%clk 0:01:52]} 16. Rd1 {[%clk 0:02:17]}  Rab8 {[%clk 0:01:49]} 17. Qh4 {[%clk 0:01:55]}  Rb4 {[%clk 0:01:18]} 18. Qxf6 {[%clk 0:01:52]}  Bxf6 {[%clk 0:01:17]} 19. d4 {[%clk 0:01:45]}  Rfb8 {[%clk 0:00:47]} 20. b3 {[%clk 0:01:43]}  c5 {[%clk 0:00:44]} 21. Ba3 {[%clk 0:01:30]}  Rxd4 {[%clk 0:00:40]} 22. Nxd4 {[%clk 0:00:59]}  Bxd4+ {[%clk 0:00:41]} 23. Kh1 {[%clk 0:00:59]}  Bxc3 {[%clk 0:00:41]} 24. Rac1 {[%clk 0:01:00]}  d4 {[%clk 0:00:41]} 25. Bxc5 {[%clk 0:00:59]}  Rc8 {[%clk 0:00:38]} 26. b4 {[%clk 0:00:47]}  Be2 {[%clk 0:00:33]} 27. Rxc3 {[%clk 0:00:20]}  dxc3 {[%clk 0:00:29]} 28. Rc1 {[%clk 0:00:19]}  c2 {[%clk 0:00:27]} 29. Rxc2 {[%clk 0:00:18]}  Bf3+ {[%clk 0:00:27]} 30. Kg1 {[%clk 0:00:18]}  a6 {[%clk 0:00:26]} 31. Kf2 {[%clk 0:00:18]}  Bd5 {[%clk 0:00:26]} 32. a3 {[%clk 0:00:18]}  Bb3 {[%clk 0:00:25]} 33. Rd2 {[%clk 0:00:17]}  Ba4 {[%clk 0:00:23]} 34. Rd6 {[%clk 0:00:17]}  Bb5 {[%clk 0:00:23]} 35. Rb6 {[%clk 0:00:15]}  h6 {[%clk 0:00:22]} 36. Ke3 {[%clk 0:00:14]}  Kh7 {[%clk 0:00:20]} 37. Rb7 {[%clk 0:00:14]}  Kg8 {[%clk 0:00:20]} 38. Bd4 {[%clk 0:00:11]}  h5 {[%clk 0:00:17]} 39. g5 {[%clk 0:00:09]}  Rd8 {[%clk 0:00:16]} 40. h4 {[%clk 0:00:09]}  Rc8 {[%clk 0:00:15]} 41. Ra7 {[%clk 0:00:08]}  Rd8 {[%clk 0:00:14]} 42. Rb7 {[%clk 0:00:08]}  Rc8 {[%clk 0:00:14]} 43. Bc5 {[%clk 0:00:08]}  Rd8 {[%clk 0:00:14]} 44. Be7 {[%clk 0:00:07]}  Rd3+ {[%clk 0:00:14]} 45. Ke2 {[%clk 0:00:07]}  Rd7+ {[%clk 0:00:14]} 0-1


[Site "https://www.chess.com"]

[Event "Titled Tuesday Blitz February 14 Late 2023"]
[White "Oliveira, Tiago Batista"]
[Black "Davalos Prieto, Abel Justo"]
[WhiteFideId "2108291"]
[BlackFideId "5102766"]
[WhiteElo "1991"]
[BlackElo "2029"]
[Result "1-0"]
[Round "07"]
[TimeControl "180+2"]
[Date "2023.02.14"]
[WhiteClock "0:00:06"]
[BlackClock "0:00:07"]

1. d4 {[%clk 0:02:58]}  Nf6 {[%clk 0:02:58]} 2. c4 {[%clk 0:02:58]}  g6 {[%clk 0:02:58]} 3. Nc3 {[%clk 0:02:58]}  d5 {[%clk 0:02:57]} 4. cxd5 {[%clk 0:02:58]}  Nxd5 {[%clk 0:02:58]} 5. e4 {[%clk 0:02:58]}  Nxc3 {[%clk 0:02:58]} 6. bxc3 {[%clk 0:02:58]}  Bg7 {[%clk 0:02:59]} 7. Be3 {[%clk 0:02:58]}  c5 {[%clk 0:02:57]} 8. Rc1 {[%clk 0:02:56]}  Qa5 {[%clk 0:02:56]} 9. Qd2 {[%clk 0:02:57]}  cxd4 {[%clk 0:02:56]} 10. cxd4 {[%clk 0:02:57]}  Qxd2+ {[%clk 0:02:56]} 11. Kxd2 {[%clk 0:02:57]}  Nc6 {[%clk 0:02:56]} 12. d5 {[%clk 0:02:51]}  Na5 {[%clk 0:02:54]} 13. f3 {[%clk 0:01:58]}  O-O {[%clk 0:02:50]} 14. Bc5 {[%clk 0:01:53]}  Bh6+ {[%clk 0:02:36]} 15. Be3 {[%clk 0:01:52]}  Bxe3+ {[%clk 0:02:31]} 16. Kxe3 {[%clk 0:01:52]}  Bd7 {[%clk 0:02:28]} 17. Ne2 {[%clk 0:01:46]}  Rfc8 {[%clk 0:02:26]} 18. g3 {[%clk 0:01:24]}  Nc4+ {[%clk 0:02:17]} 19. Kf2 {[%clk 0:01:21]}  e6 {[%clk 0:02:11]} 20. Nf4 {[%clk 0:01:19]}  exd5 {[%clk 0:02:05]} 21. Nxd5 {[%clk 0:01:19]}  Ne5 {[%clk 0:01:37]} 22. Ne7+ {[%clk 0:01:15]}  Kf8 {[%clk 0:01:37]} 23. Nxc8 {[%clk 0:01:15]}  Rxc8 {[%clk 0:01:36]} 24. Be2 {[%clk 0:01:03]}  Bc6 {[%clk 0:01:33]} 25. Rhd1 {[%clk 0:00:53]}  Ke7 {[%clk 0:01:33]} 26. f4 {[%clk 0:00:48]}  Nd7 {[%clk 0:01:32]} 27. Bf3 {[%clk 0:00:40]}  Nb6 {[%clk 0:01:21]} 28. e5 {[%clk 0:00:37]}  Bxf3 {[%clk 0:01:18]} 29. Kxf3 {[%clk 0:00:34]}  Rxc1 {[%clk 0:01:16]} 30. Rxc1 {[%clk 0:00:34]}  Kd7 {[%clk 0:01:10]} 31. Ke4 {[%clk 0:00:33]}  Nc8 {[%clk 0:01:05]} 32. g4 {[%clk 0:00:32]}  b5 {[%clk 0:00:56]} 33. f5 {[%clk 0:00:32]}  gxf5+ {[%clk 0:00:54]} 34. gxf5 {[%clk 0:00:32]}  Nb6 {[%clk 0:00:50]} 35. Rg1 {[%clk 0:00:27]}  b4 {[%clk 0:00:45]} 36. Rg7 {[%clk 0:00:27]}  Ke8 {[%clk 0:00:44]} 37. Rxh7 {[%clk 0:00:26]}  a5 {[%clk 0:00:43]} 38. Kd4 {[%clk 0:00:13]}  Na4 {[%clk 0:00:41]} 39. Kd5 {[%clk 0:00:11]}  Nc3+ {[%clk 0:00:40]} 40. Kd6 {[%clk 0:00:11]}  Kf8 {[%clk 0:00:38]} 41. f6 {[%clk 0:00:11]}  Kg8 {[%clk 0:00:32]} 42. Rg7+ {[%clk 0:00:11]}  Kf8 {[%clk 0:00:32]} 43. h4 {[%clk 0:00:10]}  Nxa2 {[%clk 0:00:25]} 44. h5 {[%clk 0:00:10]}  Nc3 {[%clk 0:00:24]} 45. h6 {[%clk 0:00:09]}  Ne4+ {[%clk 0:00:23]} 46. Kd5 {[%clk 0:00:08]}  Nc3+ {[%clk 0:00:21]} 47. Kc4 {[%clk 0:00:06]}  Ke8 {[%clk 0:00:17]} 48. h7 {[%clk 0:00:07]}  Kd7 {[%clk 0:00:17]} 49. Rxf7+ {[%clk 0:00:07]}  Ke6 {[%clk 0:00:16]} 50. Re7+ {[%clk 0:00:07]}  Kf5 {[%clk 0:00:16]} 51. h8=Q {[%clk 0:00:07]}  Ke4 {[%clk 0:00:14]} 52. f7 {[%clk 0:00:07]}  Ke3 {[%clk 0:00:12]} 53. f8=Q {[%clk 0:00:07]}  Kd2 {[%clk 0:00:11]} 54. Qh2+ {[%clk 0:00:07]}  Ne2 {[%clk 0:00:11]} 55. Qff2 {[%clk 0:00:06]}  Kc1 {[%clk 0:00:08]} 56. Qxe2 {[%clk 0:00:07]}  b3 {[%clk 0:00:07]} 57. Qg1# {[%clk 0:00:06]} 1-0


[Site "https://www.chess.com"]